bitfinex-derivatives/quotes_ETHF0:USTF0_20251013
["timestamp","ask_amount","ask_price","bid_price","bid_amount"]
[1760315822971,3.64128,4148.7,4148.3,0.43351]
[1760315823282,0.67518,4148.7,4148.6,0.7223]
[1760315823771,0.43354,4148.1,4148.0,3.4781]
[1760315823972,0.43354,4148.1,4148.0,3.9301]
[1760315824167,0.43352,4148.3,4148.0,3.4781]
[1760315824477,0.43353,4148.2,4148.1,0.7223]
[1760315824874,0.4336,4147.5,4147.4,3.9301]
[1760315825078,0.6753,4147.5,4147.4,3.9301]
[1760315825375,0.4336,4147.5,4147.4,3.9301]
[1760315826474,0.7207,4146.9,4146.8,3.21002099]
[1760315826680,0.9624,4146.9,4146.8,3.21002099]
[1760315826978,0.7207,4146.7,4146.2,3.2078]
[1760315827179,1.39613,4146.3,4146.2,3.2078]
[1760315827369,0.9624,4146.3,4145.7,3.2078]
[1760315827570,0.2417,4145.8,4145.7,3.2078]
[1760315827972,4.48691923,4145.8,4145.7,3.21041412]
[1760315828674,45.28691923,4145.8,4145.7,0.00261412]
[1760315829878,3.09073923,4145.8,4145.7,0.00261412]
[1760315830181,4.05313923,4145.8,4145.7,0.00261412]
[1760315830377,44.85313923,4145.8,4145.7,0.00261412]
[1760315830874,4.05313923,4145.8,4145.7,0.00261412]
[1760315831080,3.09073923,4145.8,4145.7,0.72491412]
[1760315831275,0.00288418,4145.8,4145.7,3.93271412]
[1760315831474,0.00288418,4145.8,4145.7,4.36650412]
[1760315831869,0.00288418,4145.8,4145.7,3.93271412]
[1760315832678,0.00288418,4145.8,4145.7,5.65501014]
[1760315833181,0.00288418,4145.8,4145.7,3.93271412]
[1760315833879,0.67836418,4145.8,4145.7,3.93271412]
[1760315834077,0.24458418,4145.8,4145.7,3.93271412]
[1760315834376,0.24458418,4145.8,4145.7,3.21041412]
[1760315834576,0.24458418,4145.8,4145.7,3.93271412]
[1760315835573,0.00288418,4145.8,4145.7,3.93271412]
[1760315835773,0.00288418,4145.8,4145.7,6.09041354]
[1760315835973,0.00288418,4145.8,4145.7,3.93271412]
[1760315836174,0.00288418,4145.8,4145.7,6.09041354]
[1760315836374,0.00288418,4145.8,4145.7,3.93271412]
[1760315836976,0.24458418,4145.8,4145.7,4.36650412]
[1760315837176,0.24458418,4145.8,4145.7,3.93271412]
[1760315837878,0.24458418,4145.8,4145.7,3.21041412]
[1760315838072,4.07169597,4145.8,4145.7,3.21041412]
[1760315838680,4.07169597,4145.8,4145.7,0.00261412]
[1760315838878,3.35099597,4145.8,4145.7,0.00261412]
[1760315839081,4.07169597,4145.8,4145.7,0.00261412]
[1760315839477,3.35099597,4145.8,4145.7,0.72491412]
[1760315839680,4.07169597,4145.8,4145.7,0.00261412]
[1760315840279,0.00288418,4145.8,4145.7,3.93271412]
[1760315841579,0.24458418,4145.8,4145.7,3.93271412]
[1760315841884,0.94138418,4145.8,4145.7,1.72386423]
[1760315842077,0.94138418,4145.8,4145.2,3.2078]
[1760315842078,1.13063,4145.3,4145.2,3.2078]
[1760315842283,1.37233,4145.3,4145.2,3.2078]
[1760315842582,1.08472,4144.8,4144.3,1.72386423]
[1760315842781,1.13075,4144.2,4144.1,3.2078]
[1760315843083,1.13075,4144.2,4143.3,2.98140252]
[1760315843084,0.43403,4143.4,4143.3,3.2078]
[1760315843287,1.37253,4143.4,4143.3,3.2078]
[1760315843581,0.43408,4143.0,4142.8,3.2078]
[1760315843886,0.2417,4142.9,4142.3,2.15800423]
[1760315844081,0.6968,4143.1,4142.4,1.11313]
[1760315844286,0.2417,4142.6,4142.4,0.43413]
[1760315844484,0.2417,4142.5,4142.3,0.00273101]
[1760315844682,0.2417,4142.5,4142.1,3.2078]
[1760315844683,1.13096,4142.2,4142.1,3.2078]
[1760315844882,1.13096,4142.2,4140.7,0.43431]
[1760315844883,3.4495,4142.2,4141.1,3.2078]
[1760315845084,3.4495,4142.2,4141.4,0.43423]
[1760315845085,0.2417,4141.9,4141.4,0.43423]
[1760315845381,0.4343,4140.8,4140.5,1.72386423]
[1760315845580,0.2923,4141.0,4139.1,3.2078]
[1760315845581,0.6968,4139.9,4139.1,3.2078]
[1760315845772,0.6968,4139.9,4139.1,3.21077134]
[1760315845773,0.2417,4139.4,4139.1,3.21077134]
[1760315845979,0.24371615,4139.4,4139.1,3.88977134]
[1760315846178,0.24371615,4139.4,4139.1,3.21077134]
[1760315846485,0.9385,4139.2,4139.1,0.00297134]
[1760315846781,0.00201615,4139.4,4139.2,0.679]
[1760315847179,0.00201615,4139.4,4139.1,3.21077134]
[1760315847379,0.00201615,4139.4,4139.3,0.679]
[1760315848474,3.84597496,4139.4,4139.1,3.21077134]
[1760315848679,0.6968,4139.3,4139.1,3.21077134]
[1760315848887,1.37297,4139.2,4139.1,3.21077134]
[1760315849080,1.13134,4138.6,4137.7,1.11362]
[1760315849387,0.6968,4137.9,4137.5,3.64244]
[1760315849578,0.2417,4137.6,4137.5,3.2078]
[1760315849885,0.9385,4137.6,4137.5,3.2078]
[1760315850081,4.0350392,4137.6,4137.5,3.2078]
[1760315850380,4.0350392,4137.6,4137.5,3.21011948]
[1760315850581,4.3273392,4137.6,4137.5,0.00231948]
[1760315850781,0.6968,4137.2,4136.1,3.2078]
[1760315850986,3.2078,4137.1,4136.1,8.48736589]
[1760315851289,3.14050158,4137.1,4137.0,1.1137]
[1760315851587,3.2078,4138.7,4137.1,1.08673]
[1760315851779,3.9046,4138.7,4138.2,0.43458]
[1760315851980,3.14050158,4138.3,4138.2,0.679]
[1760315852180,0.2417,4138.3,4138.1,0.43459]
[1760315852488,0.6968,4138.5,4138.3,0.43456]
[1760315852785,0.6968,4138.5,4137.6,3.8868]
[1760315852786,0.2417,4138.6,4138.2,0.679]
[1760315852986,0.2417,4138.6,4137.1,5.28242419]
[1760315852987,3.0886286,4138.4,4137.8,0.43461]
[1760315853294,3.0886286,4138.4,4137.5,3.8868]
[1760315853295,0.2417,4137.9,4137.5,0.679]
[1760315853582,3.2078,4138.1,4137.1,0.0028583]
[1760315853583,0.6968,4137.7,4137.1,0.0028583]
[1760315853787,3.85211016,4137.8,4137.3,0.679]
[1760315854087,0.2417,4137.5,4137.4,0.679]
[1760315854280,0.2417,4137.4,4137.1,0.0028583]
[1760315854480,3.08350093,4137.7,4137.2,0.679]
[1760315854684,3.78030093,4138.0,4137.7,0.43462]
[1760315854990,0.2417,4137.8,4137.7,0.43462]
[1760315855184,3.2078,4138.1,4138.0,0.4346]
[1760315855491,0.67635,4137.6,4137.1,0.0028583]
[1760315855695,0.2417,4137.3,4137.1,0.0028583]
[1760315855890,0.9385,4137.3,4137.1,0.0028583]
[1760315856390,3.2078,4138.1,4137.3,0.43467]
[1760315856585,0.2417,4137.6,4137.2,0.679]
[1760315856788,0.2417,4137.6,4137.2,1.11367]
[1760315856987,0.2417,4137.3,4137.2,1.11367]
[1760315857291,5.27956589,4138.6,4137.2,1.11367]
[1760315857292,3.2078,4138.7,4137.5,0.43464]
[1760315857593,3.2078,4138.7,4137.2,0.679]
[1760315857594,3.13152235,4138.0,4137.2,3.8868]
[1760315857788,3.37322235,4138.0,4137.9,0.43461]
[1760315857989,0.6968,4138.3,4138.1,0.43458]
[1760315858179,3.2078,4138.7,4138.5,0.43453]
[1760315858386,3.2078,4138.7,4138.6,0.679]
[1760315858891,0.6968,4138.9,4138.3,0.43456]
[1760315859088,0.43452,4138.7,4138.2,3.2078]
[1760315859389,3.09108243,4138.9,4138.3,0.679]
[1760315859590,3.09108243,4138.9,4138.0,2.45678]
[1760315859591,3.2078,4139.3,4139.2,0.43447]
[1760315860088,0.6968,4139.2,4138.7,3.2078]
[1760315860287,0.6968,4139.2,4137.0,0.2838]
[1760315860288,4.1463,4138.8,4138.3,0.43456]
[1760315860596,4.1463,4138.8,4137.6,3.8868]
[1760315860597,0.2417,4137.8,4137.6,3.8868]
[1760315860787,0.9385,4137.8,4137.6,3.2078]
[1760315860988,1.08628,4138.9,4137.1,0.4375483]
[1760315860989,0.6968,4137.6,4137.2,0.43467]
[1760315861194,0.2417,4137.6,4137.1,3.2106583]
[1760315861497,0.2417,4137.6,4137.1,0.0028583]
[1760315861498,1.37318,4137.2,4137.1,0.0028583]
[1760315861993,4.28228486,4137.2,4137.1,0.0028583]
[1760315862294,3.15080486,4137.2,4137.1,0.0028583]
[1760315862491,3.9046,4137.6,4137.1,0.6818583]
[1760315862685,0.9385,4137.2,4137.1,0.0028583]
[1760315863093,3.86203299,4137.2,4137.1,0.0028583]
[1760315863589,3.2078,4137.6,4137.1,0.0028583]
[1760315863889,0.43458,4138.2,4137.7,0.43462]
[1760315864091,3.2078,4138.4,4138.1,1.10368]
[1760315864289,3.14887823,4138.2,4138.1,0.6691]
[1760315864597,0.7065,4138.1,4137.8,0.6691]
[1760315864784,0.7065,4138.1,4137.2,0.43468]
[1760315865089,3.2078,4137.9,4137.6,0.43463]
[1760315865291,3.2078,4137.9,4137.8,0.6691]
[1760315865689,3.2078,4137.9,4137.5,0.6691]
[1760315865886,3.9143,4138.4,4137.8,0.6691]
[1760315866089,0.2417,4137.9,4137.8,1.10372]
[1760315866296,3.55250205,4138.4,4138.0,0.43459]
[1760315866489,0.43457,4138.3,4137.8,1.10372]
[1760315866690,0.7065,4137.7,4137.1,3.2106583]
[1760315866893,4.20434205,4138.4,4137.1,3.2106583]
[1760315866894,3.11794205,4138.2,4137.1,3.2106583]
[1760315867094,0.7065,4138.4,4137.7,0.6691]
[1760315867397,0.2417,4138.2,4138.1,0.43459]
[1760315867696,44.0078,4138.9,4138.1,0.43459]
[1760315867697,0.00201615,4139.4,4139.3,0.6691]
[1760315868695,0.00201615,4139.4,4139.2,0.43446]
[1760315868995,0.00201615,4139.4,4139.3,0.6691]
[1760315873293,0.00201615,4139.4,4139.2,3.64226]
[1760315873486,0.2417,4139.3,4139.2,4.31696]
[1760315873895,0.00201615,4139.4,4139.3,0.6747]
[1760315874496,0.00201615,4139.4,4139.2,3.64226]
[1760315874497,3.2078,4140.9,4140.7,0.43431]
[1760315874688,3.2078,4140.9,4140.8,0.6747]
[1760315875091,6.38268937,4140.9,4140.8,0.6747]
[1760315875391,0.2829,4141.8,4141.2,0.43426]
[1760315875392,3.2078,4141.4,4141.2,0.43426]
[1760315875588,3.21073925,4141.4,4141.3,0.6747]
[1760315875791,0.00293925,4141.4,4141.3,0.6747]
[1760315878496,0.00293925,4141.4,4141.2,0.43692588]
[1760315878497,0.00293925,4141.4,4141.2,0.00266588]
[1760315878698,0.2417,4141.3,4141.2,0.00266588]
[1760315878900,0.00293925,4141.4,4141.3,1.10895]
[1760315880000,3.2078,4142.7,4141.9,0.43418]
[1760315880296,3.2078,4142.7,4141.8,3.2078]
[1760315880297,1.15079,4142.0,4141.8,3.2078]
[1760315880504,0.43422,4141.7,4141.2,3.21046588]
[1760315880702,0.43422,4141.7,4141.4,0.6747]
[1760315880899,1.39255,4141.3,4141.2,3.21046588]
[1760315881106,1.39255,4141.3,4141.2,0.00266588]
[1760315881597,4.56339201,4141.3,4141.2,0.00266588]
[1760315881804,1.15095,4140.3,4140.2,3.2078]
[1760315881989,0.2417,4140.3,4140.2,3.2078]
[1760315882503,0.7166,4140.2,4139.2,0.43446]
[1760315882805,0.2417,4139.5,4139.3,0.43445]
[1760315883008,0.2417,4139.6,4139.3,0.6747]
[1760315883295,0.7166,4140.2,4139.2,0.00284183]
[1760315883296,0.43446,4139.4,4139.2,0.00284183]
[1760315883504,3.11152282,4139.8,4139.2,0.67754183]
[1760315883505,0.2417,4139.3,4139.2,0.67754183]
[1760315883698,0.2417,4139.5,4139.4,0.43445]
[1760315883899,0.2417,4139.9,4139.3,0.6747]
[1760315884198,0.6761,4139.9,4139.7,0.6747]
[1760315884502,0.9583,4139.3,4139.2,0.00284183]
[1760315884803,0.2417,4139.3,4139.2,0.00284183]
[1760315885298,0.9583,4139.3,4139.2,0.00284183]
[1760315885497,3.2078,4139.8,4139.2,0.67754183]
[1760315885696,3.2078,4139.8,4139.2,0.00284183]
[1760315886004,3.13338952,4139.7,4139.6,1.10913]
[1760315886198,3.13338952,4139.7,4139.6,0.6747]
[1760315886503,3.13338952,4139.7,4139.2,0.43730183]
[1760315886504,0.7166,4139.6,4139.2,0.43730183]
[1760315886796,0.2417,4139.3,4139.2,1.11200183]
[1760315887397,0.2417,4139.3,4139.2,0.67754183]
[1760315887600,1.39276,4139.3,4139.2,0.00284183]
[1760315888003,4.57497152,4139.3,4139.2,0.00284183]
[1760315889000,3.42391152,4139.3,4139.2,0.67754183]
[1760315889296,4.14051152,4139.3,4139.2,0.00284183]
[1760315889602,0.2417,4139.3,4139.2,0.00284183]
[1760315889907,0.9583,4139.3,4139.2,0.00284183]
[1760315890204,4.09586804,4139.3,4139.2,0.00284183]
[1760315890407,7.30366804,4139.3,4139.2,0.00284183]
[1760315890794,11.86528183,4139.3,4138.2,0.43457]
[1760315891001,0.2695,4141.0,4140.9,0.43429]
[1760315891195,0.58274361,4141.1,4140.9,0.43429]
[1760315891503,0.5112,4141.0,4140.7,3.2078]
[1760315891805,0.2695,4140.5,4140.2,3.2078]
[1760315891999,0.7166,4140.4,4140.3,0.43435]
[1760315892200,0.2695,4140.5,4140.3,0.43435]
[1760315892797,0.2695,4141.0,4140.2,8.48819831]
[1760315892798,0.2695,4141.0,4140.9,0.43429]
[1760315893003,0.2695,4141.0,4140.9,3.64209]
[1760315893201,0.5112,4141.0,4140.9,3.64209]
[1760315894196,0.2695,4141.5,4141.4,0.43424]
[1760315894399,0.2695,4141.5,4141.4,3.64204]
[1760315894906,0.5112,4141.5,4141.4,3.64204]
[1760315895103,0.2695,4141.5,4141.4,3.64204]
[1760315896298,0.9861,4141.5,4141.4,3.64204]
[1760315896599,1.2278,4141.5,4141.4,3.64204]
[1760315897001,1.2278,4141.5,4141.4,3.2078]
[1760315900501,0.2695,4141.5,4141.4,3.2078]
[1760315900705,0.9861,4141.5,4141.4,3.2078]
[1760315900903,1.2278,4141.5,4141.4,3.2078]
[1760315902013,1.2278,4141.5,4141.4,3.64204]
[1760315902209,0.9861,4141.5,4141.4,3.64204]
[1760315902707,0.2695,4142.0,4141.6,0.43422]
[1760315903304,0.72610098,4141.7,4141.6,2.15663142]
[1760315903511,0.2695,4142.5,4141.4,3.2078]
[1760315903715,0.67070001,4142.9,4142.8,0.43409]
[1760315904108,0.67070001,4142.9,4142.4,3.2078]
[1760315904315,0.5309,4142.5,4142.4,3.2078]
[1760315904508,0.29118109,4142.5,4142.4,3.2078]
[1760315905719,1.01468109,4142.5,4142.4,3.2078]
[1760315907510,1.01468109,4142.5,4142.4,2.9661]
[1760315908711,0.29118109,4142.5,4142.4,2.9661]
[1760315910019,1.01468109,4142.5,4142.4,2.9661]
[1760315912315,1.01468109,4142.5,4142.4,3.40023]
[1760315912716,1.01468109,4142.5,4142.4,2.9661]
[1760315913014,4.5410528,4142.5,4142.4,2.9661]
[1760315913414,1.08535,4142.4,4142.0,3.2078]
[1760315913608,1.08535,4142.4,4141.3,0.43424]
[1760315913609,1.15767,4142.1,4141.4,3.2078]
[1760315913813,1.44693,4141.5,4141.4,3.2078]
[1760315914711,1.0127,4141.5,4141.4,3.2078]
[1760315917315,1.0127,4141.5,4141.4,3.64204]
[1760315918821,0.2892,4142.0,4141.9,0.43419]
[1760315919724,3.42553307,4142.0,4141.5,0.43423]
[1760315919925,0.2892,4141.5,4141.4,3.2078]
[1760315920921,1.0127,4141.5,4141.4,3.2078]
[1760315921719,1.0127,4141.5,4141.4,4.93016107]
[1760315921924,1.0127,4141.5,4141.4,3.2078]
[1760315922326,1.0127,4141.5,4141.4,4.93016107]
[1760315922922,1.0127,4141.5,4141.4,3.2078]
[1760315923922,0.7235,4140.8,4140.5,1.72236107]
[1760315924226,0.7235,4140.3,4140.2,1.72454559]
[1760315924424,0.7235,4139.9,4139.8,1.72236107]
[1760315924614,0.72359,4140.0,4139.4,1.72236107]
[1760315924615,0.2892,4139.5,4139.4,1.72236107]
[1760315924821,0.7235,4139.4,4139.3,4.93016107]
[1760315925019,0.7235,4139.4,4139.3,3.2078]
[1760315925427,0.72522735,4139.4,4139.3,4.93817807]
[1760315926026,0.72522735,4139.4,4139.3,3.21084991]
[1760315928129,0.72522735,4139.4,4139.3,4.9353398]
[1760315929431,0.72522735,4139.4,4139.3,3.21084991]
[1760315929822,3.83592441,4139.4,4139.3,0.00304991]
[1760315931339,7.04372441,4139.4,4139.3,0.00304991]
[1760315932530,7.04372441,4139.4,4138.3,3.2078]
[1760315932531,0.2925,4138.5,4138.3,3.64236]
[1760315932726,0.764,4138.4,4138.3,3.64236]
[1760315933328,0.764,4138.4,4138.3,3.2078]
[1760315933727,0.764,4138.4,4138.3,3.2106686]
[1760315934432,0.764,4138.4,4138.3,1.6421686]
[1760315934632,3.2078,4135.8,4132.5,0.3065]
[1760315934937,0.43499,4134.3,4134.0,0.3065]
[1760315935127,16.81246794,4135.4,4133.1,11.55910712]
[1760315935128,0.43509,4133.3,4133.1,11.55910712]
[1760315935430,5.94057794,4133.2,4133.1,11.70974046]
[1760315935636,9.05832952,4133.2,4132.5,0.3065]
[1760315935934,9.05832952,4133.2,4132.6,11.70974046]
[1760315935935,0.43515,4132.8,4132.6,11.70974046]
[1760315936134,0.43515,4132.8,4127.3,2.17859]
[1760315936135,10.04537794,4132.7,4129.8,3.2078]
[1760315936326,10.04537794,4132.7,4129.3,3.2078]
[1760315936327,0.43549,4129.6,4129.3,3.2078]
[1760315936532,0.43551,4129.3,4129.0,0.3065]
[1760315936745,0.4356,4128.5,4128.0,0.3065]
[1760315937033,0.43567,4127.8,4126.5,3.2078]
[1760315937239,3.64347,4127.8,4126.6,0.734]
[1760315937425,3.13041606,4127.7,4127.0,0.734]
[1760315937627,3.2078,4128.3,4127.9,0.3065]
[1760315937829,3.2078,4128.8,4128.0,0.734]
[1760315938031,0.0021159,4129.3,4128.7,0.734]
[1760315938232,0.1859,4130.9,4129.4,0.734]
[1760315938440,3.2078,4129.6,4129.4,0.734]
[1760315938631,0.43549,4129.5,4128.6,1.0405]
[1760315938931,0.43549,4129.5,4128.6,0.3065]
[1760315938932,3.2078,4128.9,4128.6,0.3065]
[1760315939235,3.21079013,4128.9,4128.7,0.734]
[1760315939730,3.21079013,4128.9,4128.0,0.734]
[1760315939927,0.00299013,4128.9,4128.7,0.734]
[1760315940134,6.37312208,4128.8,4128.7,0.734]
[1760315940341,6.37312208,4128.8,4127.9,1.04273906]
[1760315940528,3.2078,4128.2,4127.9,0.00223906]
[1760315940733,3.82934,4128.2,4127.9,0.00223906]
[1760315940946,3.08754267,4128.1,4128.0,0.734]
[1760315941239,40.8,4128.7,4128.6,1.0405]
[1760315941240,3.2078,4128.7,4128.6,1.0405]
[1760315941427,0.00299013,4128.9,4128.8,0.734]
[1760315941628,0.1859,4130.6,4128.6,0.3065]
[1760315941629,3.2078,4129.8,4129.3,1.0405]
[1760315941936,3.2078,4129.8,4129.4,0.43549]
[1760315942143,6.37959848,4130.3,4129.5,1.16948]
[1760315942337,3.14245612,4129.7,4128.6,0.3065]
[1760315942535,3.2078,4129.0,4128.6,0.3065]
[1760315942741,3.2078,4129.0,4128.8,0.734]
[1760315942742,1.92159352,4129.0,4128.8,0.734]
[1760315943034,3.12817245,4129.4,4129.3,0.734]
[1760315943240,3.12817245,4129.4,4128.6,0.3065]
[1760315943241,3.12817245,4129.4,4128.6,0.734]
[1760315943439,3.18414727,4129.4,4129.3,1.0405]
[1760315943634,0.00288705,4129.7,4129.4,0.734]
[1760315944036,0.00288705,4129.7,4128.9,3.2078]
[1760315944231,0.00288705,4129.7,4129.2,0.43552]
[1760315944435,3.2078,4130.0,4128.6,0.3065]
[1760315944436,3.2078,4130.7,4129.9,0.734]
[1760315944838,0.764,4129.5,4128.4,3.2078]
[1760315945040,3.2078,4128.8,4127.9,3.51653906]
[1760315945246,3.11045164,4129.4,4129.3,1.47601]
[1760315945431,3.2078,4130.8,4129.3,3.9418]
[1760315945636,0.2925,4130.0,4129.9,3.2078]
[1760315945832,1.0565,4130.0,4129.3,3.2078]
[1760315946046,0.764,4129.9,4129.3,3.2078]
[1760315946236,0.764,4129.9,4129.8,3.64325]
[1760315946545,0.764,4130.6,4130.1,0.43543]
[1760315946741,0.2925,4130.7,4129.8,3.2078]
[1760315946742,0.2925,4130.7,4130.3,0.4354]
[1760315946938,3.14612018,4130.6,4130.3,0.4354]
[1760315947140,3.14612018,4130.6,4130.0,0.43543]
[1760315947344,3.14612018,4130.6,4129.8,3.2078]
[1760315947345,0.2925,4130.0,4129.8,3.2078]
[1760315947646,0.764,4129.9,4129.8,3.2078]
[1760315948140,0.2925,4130.0,4129.8,3.2078]
[1760315948439,0.764,4129.9,4129.8,3.2078]
[1760315948844,0.764,4130.6,4129.8,4.29645]
[1760315949041,0.764,4130.6,4129.9,0.43545]
[1760315949341,0.764,4130.6,4129.8,3.64325]
[1760315949342,0.764,4130.5,4129.8,3.64325]
[1760315949556,0.764,4130.5,4130.2,0.43542]
[1760315949841,0.764,4130.6,4130.3,0.4354]
[1760315950246,3.16124947,4130.6,4130.5,0.43539]
[1760315950443,0.2925,4130.7,4130.5,3.64319]
[1760315950841,1.0565,4130.7,4130.5,3.64319]
[1760315951043,0.00228288,4130.8,4130.7,0.43536]
[1760315951440,0.764,4132.0,4130.7,10.88412]
[1760315951647,3.2078,4132.4,4131.9,0.43524]
[1760315951947,1.0254,4132.1,4131.9,0.43524]
[1760315952441,0.764,4132.7,4132.5,0.43516]
[1760315952641,0.764,4132.6,4132.5,0.43516]
[1760315953651,0.00300301,4132.7,4132.5,0.43516]
[1760315953858,0.00300301,4132.7,4132.5,0.43517]
[1760315954051,0.764,4132.6,4132.5,0.43517]
[1760315955446,0.00300301,4132.7,4132.5,0.43517]
[1760315955654,0.76700301,4132.7,4132.6,3.2078]
[1760315957949,1.0565,4132.2,4132.1,3.2078]
[1760315958148,1.0565,4132.2,4132.1,3.64302]
[1760315958952,0.43527,4131.6,4131.0,3.2078]
[1760315959143,0.764,4131.4,4131.0,3.2078]
[1760315959343,0.2925,4132.2,4131.0,4.29614]
[1760315959552,0.764,4132.1,4132.0,0.43522]
[1760315959943,0.2925,4132.2,4131.4,3.2078]
[1760315960250,1.0565,4131.5,4131.4,3.64544811]
[1760315960544,0.764,4132.1,4132.0,0.43523]
[1760315960950,3.2078,4132.6,4132.4,0.43519]
[1760315961148,1.81298336,4132.5,4132.4,0.43519]
[1760315961944,1.81298336,4132.5,4132.2,0.4352]
[1760315962148,0.935,4132.3,4132.2,0.4352]
[1760315962339,1.69148336,4132.3,4132.2,0.4352]
[1760315962543,0.935,4132.2,4131.9,3.2078]
[1760315962747,0.85962198,4132.0,4131.8,0.43524]
[1760315962952,2.55110534,4131.9,4131.8,0.43524]
[1760315963148,2.97355091,4131.9,4131.8,0.43524]
[1760315964149,2.97355091,4131.9,4131.4,0.43764811]
[1760315964150,0.2934,4131.5,4131.4,0.43764811]
[1760315964457,1.98488336,4131.5,4131.4,0.00235811]
[1760315964752,3.68645069,4131.5,4131.4,0.00235811]
[1760315964956,1.98488336,4131.5,4131.4,0.00235811]
[1760315966453,1.60798918,4131.5,4131.4,0.00235811]
[1760315966653,1.27723498,4132.0,4131.9,0.43524]
[1760315966858,2.21223498,4132.2,4132.1,0.43522]
[1760315967259,0.935,4132.2,4132.1,0.43522]
[1760315967651,0.935,4131.9,4131.4,3.21015811]
[1760315967852,0.2934,4132.0,4131.4,3.21015811]
[1760315967853,0.2934,4132.0,4131.7,0.43525]
[1760315968053,0.2934,4132.0,4131.4,3.21015811]
[1760315968054,0.72863,4132.0,4131.5,0.43527]
[1760315968253,0.935,4131.9,4131.5,0.43527]
[1760315968750,0.935,4131.9,4131.6,0.43526]
[1760315969260,0.935,4131.9,4131.4,3.21015811]
[1760315969261,0.935,4131.9,4131.7,0.43525]
[1760315969560,0.2934,4132.0,4131.7,0.43525]
[1760315970158,1.27723498,4132.4,4131.5,1.08821]
[1760315970354,1.27723498,4132.6,4132.5,0.43517]
[1760315970660,0.935,4132.6,4132.5,0.43517]
[1760315970862,0.935,4132.6,4132.3,0.43519]
[1760315971063,0.935,4132.4,4132.3,0.43519]
[1760315971262,1.2284,4132.0,4131.4,0.00235811]
[1760315971463,1.2284,4131.5,4131.4,0.00235811]
[1760315972360,4.4144756,4131.5,4131.4,0.00235811]
[1760315974859,3.2078,4131.7,4131.4,0.00235811]
[1760315974860,1.28178942,4131.7,4131.4,0.00235811]
[1760315975057,0.935,4131.7,4131.6,0.43527]
[1760315975367,1.2284,4131.5,4131.4,0.00235811]
[1760315975758,4.43770488,4131.5,4131.4,0.00235811]
[1760315976261,5.72055288,4131.5,4131.4,0.00235811]
[1760315976658,5.72100904,4131.5,4131.4,0.00235811]
[1760315976971,4.43770488,4131.5,4131.4,0.00235811]
[1760315978662,5.11019635,4131.5,4131.4,0.00235811]
[1760315978964,3.18501894,4131.5,4131.4,0.00235811]
[1760315979165,5.07968828,4131.5,4131.4,0.00235811]
[1760315979861,0.935,4130.4,4130.3,3.64321]
[1760315980062,1.60749147,4130.4,4130.3,3.2078]
[1760315980367,0.64480706,4130.4,4130.3,3.2078]
[1760315980564,1.31487732,4130.4,4130.3,3.2078]
[1760315980864,1.31487732,4130.4,4130.3,3.21080312]
[1760315982065,0.2934,4130.0,4129.7,3.2078]
[1760315982260,5.97017377,4129.9,4129.7,3.2078]
[1760315982460,1.60507026,4129.8,4129.7,3.2078]
[1760315982863,0.935,4129.3,4129.0,3.2078]
[1760315983157,0.2934,4128.0,4127.9,3.2078]
[1760315983361,1.2284,4128.0,4127.9,3.2078]
[1760315983666,1.89703762,4128.0,4127.9,3.2078]
[1760315984269,1.2284,4128.0,4127.9,3.21042583]
[1760315984466,0.2934,4128.5,4128.2,0.43562]
[1760315984672,0.935,4128.3,4128.2,0.43562]
[1760315984859,0.66773899,4128.3,4127.9,3.21042583]
[1760315985059,0.66773899,4128.2,4127.9,3.21042583]
[1760315985261,0.935,4128.4,4128.1,0.43563]
[1760315985568,0.935,4128.2,4128.1,0.43563]
[1760315985969,0.3543,4128.0,4127.9,3.64608583]
[1760315986263,1.3174,4128.0,4127.9,3.64608583]
[1760315986465,1.3174,4128.0,4127.9,3.21042583]
[1760315986663,1.3174,4128.0,4127.9,0.00262583]
[1760315988462,0.9631,4128.0,4127.9,0.00262583]
[1760315988765,0.9631,4128.4,4127.9,3.21042583]
[1760315989069,0.9631,4128.4,4128.3,0.43561]
[1760315990060,1.3174,4128.0,4127.9,3.21042583]
[1760315990460,1.2565,4128.5,4128.4,0.43561]
[1760315990867,4.1709,4128.8,4128.7,0.43558]
[1760315991267,3.2078,4128.8,4128.4,0.4356]
[1760315991469,3.2078,4128.8,4127.9,3.21042583]
[1760315991663,3.2078,4128.8,4128.6,0.43558]
[1760315991664,0.9294,4128.7,4128.6,0.43558]
[1760315992360,0.00219908,4129.3,4127.9,3.21042583]
[1760315992565,0.3543,4130.5,4129.9,0.43545]
[1760315992762,0.3543,4130.5,4129.9,3.64325]
[1760315993580,0.35601556,4130.0,4129.9,3.64325]
[1760315994467,1.28541556,4130.0,4129.9,3.64325]
[1760315996170,1.30201556,4130.0,4129.9,3.64325]
[1760315996672,0.3543,4130.5,4129.9,3.64325]
[1760315996673,0.3543,4130.5,4130.4,0.4354]
[1760315997271,0.3543,4130.5,4130.4,3.6432]
[1760315997775,0.35602154,4130.5,4130.4,3.6432]
[1760315997975,0.35602154,4130.5,4130.3,0.4354]
[1760315998574,0.35602154,4130.5,4130.2,0.43541]
[1760315998881,0.9294,4130.4,4130.2,0.43541]
[1760315999178,0.9294,4129.9,4129.8,3.64325]
[1760315999378,1.3003,4129.5,4129.4,0.4355]
[1760315999676,0.3709,4129.5,4129.3,3.2078]
[1760315999872,0.9294,4129.4,4129.3,3.2078]
[1760316000576,0.9294,4128.4,4128.3,0.43561]
[1760316000776,0.9294,4128.4,4127.7,1.08919]
[1760316000777,0.3709,4128.0,4127.9,0.43827583]
[1760316001170,1.3003,4128.0,4127.9,0.43827583]
[1760316002175,1.3003,4128.0,4127.9,0.00262583]
[1760316002478,0.3709,4128.5,4128.4,0.43561]
[1760316002670,0.3709,4129.0,4128.7,0.43557]
[1760316002975,0.3709,4129.0,4128.9,3.2078]
[1760316003183,0.43547,4129.8,4129.1,0.43552]
[1760316003366,0.3709,4129.0,4128.9,0.43554]